Posting Date,Expenditure Area,Supplier,Reason for Expense,Line Net Amount,Expense Type
16-Oct-19,Corporate Management Team,Greater Anglia T/o,train travel to Mipim exhibition in London,56.58,Exhibition expenses
21-Oct-19,Culture & Environment Services,2cl Communications,Earpieces,39.00,Miscellaneous Expenses
21-Oct-19,Culture & Environment Services,A1 Pressure Washers Ltd,Hose/Gun pressure washer - Play Area Inspector,166.20,Equipment / Furniture / Materials
28-Oct-19,Culture & Environment Services,Agroco Trailers,2 number plates for trailer,32.00,Equipment / Furniture / Materials
25-Oct-19,Culture & Environment Services,Aldi 13 776,Garden Tools - CHRISTCHURCH PARK HUB,4.98,Materials and Supplies - Miscellaneous
18-Oct-19,Culture & Environment Services,Aldi 89 776,refreshments for volunteers,36.49,Miscellaneous Expenses
18-Oct-19,Culture & Environment Services,Aldi 89 776,refreshments for volunteers,15.88,Miscellaneous Expenses
21-Oct-19,Culture & Environment Services,Amazon.Co.Uk,usb flash drive,17.50,Computer Consumables and other Minor IT costs
24-Oct-19,Culture & Environment Services,Amazon.Co.Uk,Pens for Christmas Party Place Cards,19.14,Equipment / Furniture / Materials
24-Oct-19,Culture & Environment Services,Amazon.Co.Uk,Refund for Indoor Cycling straps.,-24.92,Equipment / Furniture / Materials
24-Oct-19,Culture & Environment Services,Amazon.Co.Uk,Straps for Indoor CYC bikes.,24.92,Equipment / Furniture / Materials
17-Oct-19,Culture & Environment Services,Amazon.Co.Uk,Purchase of cable ties for stage use,19.17,Miscellaneous Expenses
08-Oct-19,Culture & Environment Services,Amazon.Co.Uk,Stationery for Waste Services,14.21,Stationery
01-Oct-19,Culture & Environment Services,Amznmktplace,Radar keys for shopmobility,18.05,Cleaning Supplies
31-Oct-19,Culture & Environment Services,Amznmktplace,Bin bag holder.,6.66,Cleaning Supplies
16-Oct-19,Culture & Environment Services,Amznmktplace,Ergonomic keyboard + Keyboard and tablet case,34.99,Computer Consumables and other Minor IT costs
16-Oct-19,Culture & Environment Services,Amznmktplace,Ergonomic keyboard + tablet case - Delivery refund,-4.16,Computer Consumables and other Minor IT costs
30-Oct-19,Culture & Environment Services,Amznmktplace,USB charge cables,13.22,Computer Consumables and other Minor IT costs
24-Oct-19,Culture & Environment Services,Amznmktplace,Extendable pole brushes for cleaning refuse vehicles,77.64,Direct Transport Costs
07-Oct-19,Culture & Environment Services,Amznmktplace,Purchase of towels for use by shows and events,153.92,Equipment / Furniture / Materials
07-Oct-19,Culture & Environment Services,Amznmktplace,Purchase of towels for use by shows and events,153.92,Equipment / Furniture / Materials
11-Oct-19,Culture & Environment Services,Amznmktplace,A5 2020 Diary,2.12,Equipment / Furniture / Materials
16-Oct-19,Culture & Environment Services,Amznmktplace,Ergonomic keyboard + Keyboard and tablet case,41.65,Equipment / Furniture / Materials
16-Oct-19,Culture & Environment Services,Amznmktplace,Ergonomic keyboard + tablet case - Delivery refund,-2.79,Equipment / Furniture / Materials
17-Oct-19,Culture & Environment Services,Amznmktplace,merchandise pins ,4.76,Equipment / Furniture / Materials
24-Oct-19,Culture & Environment Services,Amznmktplace,Christmas parties,47.54,Equipment / Furniture / Materials
31-Oct-19,Culture & Environment Services,Amznmktplace,Foot rest,12.49,Equipment / Furniture / Materials
17-Oct-19,Culture & Environment Services,Amznmktplace,Labels for Holywells park stable block,17.49,Materials and Supplies - Miscellaneous
18-Oct-19,Culture & Environment Services,Amznmktplace,Hedge fertiliser,48.36,Miscellaneous Stock  - Purchases
25-Oct-19,Culture & Environment Services,Amznmktplace Amazon.Co.Uk,litter pickers,14.98,Cleaning Supplies
15-Oct-19,Culture & Environment Services,Amznmktplace Amazon.Co.Uk,Purchase of Heavy Duty Dollies for moving set and equipment,150.97,Equipment / Furniture / Materials
18-Oct-19,Culture & Environment Services,Amznmktplace Amazon.Co.Uk,Combination key box,14.98,Equipment / Furniture / Materials
21-Oct-19,Culture & Environment Services,Amznmktplace Amazon.Co.Uk,Replacement health suite clock,14.16,Equipment / Furniture / Materials
25-Oct-19,Culture & Environment Services,Amznmktplace Amazon.Co.Uk,Football pump,10.80,Equipment / Furniture / Materials
24-Oct-19,Culture & Environment Services,Amznmktplace Amazon.Co.Uk,Whistles and batteries,19.12,Materials and Supplies - Miscellaneous
25-Oct-19,Culture & Environment Services,Amznmktplace Amazon.Co.Uk,Large key rings - CHRISTCHURCH PARK,2.67,Materials and Supplies - Miscellaneous
30-Oct-19,Culture & Environment Services,Anchor Safety Llp,Trousers for Apprentice,24.15,Clothing / Uniform & Laundry
31-Oct-19,Culture & Environment Services,Anglian Catering Equip,Hire of upright fridges for Diversity,347.01,Equipment Hire
08-Oct-19,Culture & Environment Services,Argos Ltd,Items for the Ark - Park Patrol,114.97,Miscellaneous Stock  - Purchases
23-Oct-19,Culture & Environment Services,Argos Warren Heath,Storage unit,12.50,Equipment / Furniture / Materials
23-Oct-19,Culture & Environment Services,Asda Stores 4278,Volunteer's refreshments: milk,1.09,Miscellaneous Expenses
26-Sep-19,Culture & Environment Services,Asda Superstore,Dietary food for conference 51174,1.85,Catering/Beverages
10-Oct-19,Culture & Environment Services,Asda Superstore,Dietary food for conference 51189,8.77,Catering/Beverages
31-Oct-19,Culture & Environment Services,Asda Superstore,Vanish washing powders,12.08,Cleaning Supplies
17-Oct-19,Culture & Environment Services,Asda Superstore,Paper cups and pasta (for Musical Shake and Play),1.69,Equipment / Furniture / Materials
18-Oct-19,Culture & Environment Services,Asda Superstore,Refreshments for CCP - Christchurch Hub,2.60,Miscellaneous Stock  - Purchases
02-Oct-19,Culture & Environment Services,B & M Retail,Milk for 50+,1.09,Catering/Beverages
16-Oct-19,Culture & Environment Services,B & M Retail,Milk for 50+,1.09,Catering/Beverages
09-Oct-19,Culture & Environment Services,B & M Retail,Milk 50+,1.09,Equipment / Furniture / Materials
22-Oct-19,Culture & Environment Services,B & M Retail,Frames for vegan ice cream prices,4.20,Equipment / Furniture / Materials
23-Oct-19,Culture & Environment Services,B & M Retail,Milk 50+,1.09,Equipment / Furniture / Materials
28-Oct-19,Culture & Environment Services,B & M Retail,Over door hooks for Christmas decorations,7.47,Equipment / Furniture / Materials
28-Oct-19,Culture & Environment Services,B & M Retail,refund of over the door hooks,-2.49,Equipment / Furniture / Materials
07-Oct-19,Culture & Environment Services,B & M Retail,Purchase of hand towels for use on stage,33.25,Materials and Supplies - Miscellaneous
11-Oct-19,Culture & Environment Services,B & Q 1315,NUT - HAVERGATE WAY - PLAY AREA INSPECTOR,6.58,Equipment / Furniture / Materials
02-Oct-19,Culture & Environment Services,B & Q 1315,Flat File - Chantry Park Hub,11.58,Materials and Supplies - Miscellaneous
04-Oct-19,Culture & Environment Services,B & Q 1315,Sprayer - Chantry Park,32.50,Materials and Supplies - Miscellaneous
11-Oct-19,Culture & Environment Services,B & Q 1315,2 x Jugs - CHANTRY HUB,5.00,Materials and Supplies - Miscellaneous
11-Oct-19,Culture & Environment Services,B & Q 1315,Sand Bags - CHANTRY HUB,5.00,Materials and Supplies - Miscellaneous
22-Oct-19,Culture & Environment Services,B & Q 1315,Fishing swims - CHANTRY PARK,7.92,Materials and Supplies - Miscellaneous
15-Oct-19,Culture & Environment Services,B & Q 1315,Timber - BENCH BASE - ST AUGUSTINES REC,54.46,Miscellaneous Stock  - Purchases
15-Oct-19,Culture & Environment Services,B & Q 1315,Timber - BENCH BASE - ST AUGUSTINES REC,122.80,Miscellaneous Stock  - Purchases
25-Oct-19,Culture & Environment Services,B & Q 1315,Ballast - BRAMFORD REC - Landscape Team,71.05,Miscellaneous Stock  - Purchases
25-Oct-19,Culture & Environment Services,B & Q 1315,Cement - BRAMFORD REC - Landscape Team,78.87,Miscellaneous Stock  - Purchases
23-Oct-19,Culture & Environment Services,B&m Retail,Over door hooks for wreathes,4.98,Equipment / Furniture / Materials
24-Oct-19,Culture & Environment Services,Bag Agg Ltd,Sharp sand - SPRITES SCHOOL SLAB LAYING - Chantry Hub,12.00,Materials and Supplies - Miscellaneous
24-Oct-19,Culture & Environment Services,Bag Agg Ltd,Sharp sand - SPRITES SCHOOL SLAB LAYING - Chantry Hub,14.40,Materials and Supplies - Miscellaneous
25-Oct-19,Culture & Environment Services,Bag Agg Ltd,Sharp sand - SPRITES SCHOOL SLAB LAYING - Chantry Hub,11.28,Materials and Supplies - Miscellaneous
04-Oct-19,Culture & Environment Services,Bag Agg Ltd,Ballast - BOURNE PARK - Landscape Team,25.00,Miscellaneous Stock  - Purchases
07-Oct-19,Culture & Environment Services,Bag Agg Ltd,Ballast - HOLYWELLS BIN BASE - Landscape Team,25.00,Miscellaneous Stock  - Purchases
09-Oct-19,Culture & Environment Services,Bag Agg Ltd,Ballast - MURRAY ROAD REC - Landscape Team,24.50,Miscellaneous Stock  - Purchases
11-Oct-19,Culture & Environment Services,Bag Agg Ltd,Ballast - MILLY CEMS - Landscape Team,24.50,Miscellaneous Stock  - Purchases
14-Oct-19,Culture & Environment Services,Bag Agg Ltd,Ballast - ST AUGUSTINE'S REC,75.00,Miscellaneous Stock  - Purchases
16-Oct-19,Culture & Environment Services,Bag Agg Ltd,Ballast - MURRAY ROAD REC - Landscape Team,50.00,Miscellaneous Stock  - Purchases
16-Oct-19,Culture & Environment Services,Bag Agg Ltd,Ballast - MURRAY ROAD REC - Landscape Team,59.50,Miscellaneous Stock  - Purchases
21-Oct-19,Culture & Environment Services,Bag Agg Ltd,Ballast - Landscape Team,75.00,Miscellaneous Stock  - Purchases
24-Oct-19,Culture & Environment Services,Bag Agg Ltd,Ballast - BRAMFORD REC- Landscape Team,50.00,Miscellaneous Stock  - Purchases
24-Oct-19,Culture & Environment Services,Bag Agg Ltd,Ballast - MURRAY ROAD - Landscape Team,25.50,Miscellaneous Stock  - Purchases
21-Oct-19,Culture & Environment Services,Baker Ross,Halloween arts and crafts/decorations.,28.03,Equipment / Furniture / Materials
08-Oct-19,Culture & Environment Services,Barnard Brothers,Bales of straw,13.33,Materials and Supplies - Miscellaneous
04-Oct-19,Culture & Environment Services,Booker Limited Ipswich,Drink for bars etc,110.99,Catering/Beverages
04-Oct-19,Culture & Environment Services,Booker Limited Ipswich,Drink for bars etc,17.98,Catering/Beverages
07-Oct-19,Culture & Environment Services,Booker Limited Ipswich,Tonic etc for bars,45.93,Catering/Beverages
07-Oct-19,Culture & Environment Services,Booker Limited Ipswich,White wine - Bars,164.90,Catering/Beverages
09-Oct-19,Culture & Environment Services,Booker Limited Ipswich,"Cleaning products, Milk Jiggers etc",12.58,Catering/Beverages
09-Oct-19,Culture & Environment Services,Booker Limited Ipswich,"Cleaning products, Milk Jiggers etc",15.58,Catering/Beverages
15-Oct-19,Culture & Environment Services,Booker Limited Ipswich,Bookers,22.50,Catering/Beverages
15-Oct-19,Culture & Environment Services,Booker Limited Ipswich,Bookers,15.58,Catering/Beverages
15-Oct-19,Culture & Environment Services,Booker Limited Ipswich,Bookers,0.85,Catering/Beverages
09-Oct-19,Culture & Environment Services,Booker Limited Ipswich,"Cleaning products, Milk Jiggers etc",101.62,Cleaning Supplies
15-Oct-19,Culture & Environment Services,Booker Limited Ipswich,Bookers,13.97,Equipment / Furniture / Materials
25-Oct-19,Culture & Environment Services,Bright Acres Tool Hire,Turf Cutter hire to lift turf,67.50,Materials and Supplies - Miscellaneous
14-Oct-19,Culture & Environment Services,British Cycling Fe,Crafted Refund,50.00,Miscellaneous Expenses
14-Oct-19,Culture & Environment Services,British Cycling Fe,British Cycling Event Rider Levies - Crafted Classique,666.00,Non Contracted_Professional Services
09-Oct-19,Culture & Environment Services,Buildbase - Ipswich,woodscrews,16.85,Materials and Supplies - Miscellaneous
28-Oct-19,Culture & Environment Services,Buildbase - Ipswich,timber and fixings,136.00,Materials and Supplies - Miscellaneous
10-Oct-19,Culture & Environment Services,Bunzl,Paper goods and cleaning supplies,100.10,Cleaning Supplies
10-Oct-19,Culture & Environment Services,Bunzl,Toilet roll - Old foundry road toilets,166.40,Cleaning Supplies
14-Oct-19,Culture & Environment Services,Bunzl,Cleaning Supplies,66.66,Cleaning Supplies
18-Oct-19,Culture & Environment Services,Bunzl,Cleaning Products - Christchurch Hub,53.06,Cleaning Supplies
24-Oct-19,Culture & Environment Services,Bunzl,cleaning products and toilet roll old foundry road,201.24,Cleaning Supplies
24-Oct-19,Culture & Environment Services,Bunzl,cleaning products Holywells stable block toilets,29.79,Cleaning Supplies
31-Oct-19,Culture & Environment Services,Clintons 1208,Leaving card ,2.92,Equipment / Furniture / Materials
14-Oct-19,Culture & Environment Services,Coffee Cat,Meeting Refreshments - Hudsons Signs Ltd,12.22,Miscellaneous Expenses
02-Oct-19,Culture & Environment Services,Collier&catchpole,masonry supplies,67.60,Equipment / Furniture / Materials
10-Oct-19,Culture & Environment Services,Collier&catchpole,For use in play areas,201.78,Equipment / Furniture / Materials
28-Oct-19,Culture & Environment Services,Collier&catchpole,Cement - SPRITES SCHOOL SLAB LAYING - Chantry Hub,9.40,Materials and Supplies - Miscellaneous
15-Oct-19,Culture & Environment Services,Collier&catchpole,Pallet of cement - LANDSCAPE TEAM,277.76,Miscellaneous Stock  - Purchases
04-Oct-19,Culture & Environment Services,Cpw Locksmiths And Securi,Update Justin Keys and Purchase new spiral door lock keys fo,50.00,Equipment / Furniture / Materials
09-Oct-19,Culture & Environment Services,Cpw Locksmiths And Securi,Padlock for chemical box,10.80,Materials and Supplies - Miscellaneous
11-Oct-19,Culture & Environment Services,Cpw Locksmiths And Securi,Keys for CCP,50.00,Materials and Supplies - Miscellaneous
15-Oct-19,Culture & Environment Services,Cpw Locksmiths And Securi,Keys  - CHRISTCHURCH HUB,10.00,Materials and Supplies - Miscellaneous
14-Oct-19,Culture & Environment Services,Cpw Locksmiths And Securi,Padlock for van - LANDSCAPE TEAM,26.00,Miscellaneous Stock  - Purchases
31-Oct-19,Culture & Environment Services,Cpw Locksmiths And Securi,Keys cut for Team - LANDSCAPE TEAM,42.50,Miscellaneous Stock  - Purchases
09-Oct-19,Culture & Environment Services,Crown Decorating Centr,Stanley Knife - PLAY AREA INSPECTOR,1.32,Equipment / Furniture / Materials
08-Oct-19,Culture & Environment Services,Currys,Items for the Ark - Park Patrol,207.50,Miscellaneous Stock  - Purchases
18-Oct-19,Culture & Environment Services,Currys Online,Fridge and delivery for Waterfront / Staff Welfare,115.83,Equipment / Furniture / Materials
02-Oct-19,Culture & Environment Services,Dale Sauna Ltd,"Acid, PAC and testing tablets",347.09,Cleaning Supplies
08-Oct-19,Culture & Environment Services,Dvla Vehicle Tax,Vehicle tax for AY63 WHM,262.50,Direct Transport Costs
08-Oct-19,Culture & Environment Services,Dvla Vehicle Tax,Vehicle Tax for AY66 CYA,"1,138.50",Direct Transport Costs
08-Oct-19,Culture & Environment Services,Dvla Vehicle Tax,Vehicle Tax for LK60 ETD,167.50,Direct Transport Costs
14-Oct-19,Culture & Environment Services,Dvla Vehicle Tax,Vehicle Tax for AV61 RKA,262.50,Direct Transport Costs
22-Oct-19,Culture & Environment Services,Dvla Vehicle Tax,Vehicle tax for AF64 TXE,22.50,Direct Transport Costs
22-Oct-19,Culture & Environment Services,Dvla Vehicle Tax,Vehicle Tax for AV61 TGN,262.50,Direct Transport Costs
08-Oct-19,Culture & Environment Services,Dvla Vehicle Tax,Vehicle Tax for AO64HMV,262.50,Parks Vehicle Costs
08-Oct-19,Culture & Environment Services,Dvla Vehicle Tax,Vehicle tax for EJ64 EWA,262.50,Parks Vehicle Costs
08-Oct-19,Culture & Environment Services,Dvla Vehicle Tax,Vehicle Tax for EJ64 EWB,262.50,Parks Vehicle Costs
08-Oct-19,Culture & Environment Services,Dvla Vehicle Tax,Vehicle Tax for EJ64 EWC,262.50,Parks Vehicle Costs
08-Oct-19,Culture & Environment Services,Dvla Vehicle Tax,Vehicle Tax for LD66 KCO,262.50,Parks Vehicle Costs
08-Oct-19,Culture & Environment Services,Dvla Vehicle Tax,Vehicle Tax for LD66 KCU,262.50,Parks Vehicle Costs
08-Oct-19,Culture & Environment Services,Dvla Vehicle Tax,Vehicle Tax for LD66 KCV,262.50,Parks Vehicle Costs
08-Oct-19,Culture & Environment Services,Dvla Vehicle Tax,Vehicle Tax LD66 KCX,262.50,Parks Vehicle Costs
14-Oct-19,Culture & Environment Services,East Suffolk Council,Personal Licence,30.83,Training/Courses Running Costs
30-Oct-19,Culture & Environment Services,Electrical World,poolside socket cover,20.11,Equipment / Furniture / Materials
04-Oct-19,Culture & Environment Services,Elmers Hardware,Rake/Hoe/Lopper - Chantry Park Hub,84.14,Materials and Supplies - Miscellaneous
28-Oct-19,Culture & Environment Services,Elmers Hardware,Bolts & coach nut - Chantry Park,25.23,Materials and Supplies - Miscellaneous
10-Oct-19,Culture & Environment Services,Ernest Doe / Sons,Spray Nozzles - CHANTRY HUB,76.39,Materials and Supplies - Miscellaneous
18-Oct-19,Culture & Environment Services,Euroffice.Co.Uk,Bin,6.32,Equipment / Furniture / Materials
10-Oct-19,Culture & Environment Services,Fast Key Services Limi,Replacement keys for pedestal,29.16,Equipment / Furniture / Materials
24-Oct-19,Culture & Environment Services,Fast Key Services Limi,Replacement Keys for Town Hall Desk Pedestal,19.21,Equipment / Furniture / Materials
25-Oct-19,Culture & Environment Services,Fenland Leisure Products,Wetpour binder - Landscape Team,365.00,Miscellaneous Stock  - Purchases
15-Oct-19,Culture & Environment Services,Franklins Ipswich,Fabric for the exhibition,103.25,Equipment / Furniture / Materials
08-Oct-19,Culture & Environment Services,Giraffe Concepts Ltd,Staff Refreshments at LAEOG Course,68.66,Miscellaneous Expenses
31-Oct-19,Culture & Environment Services,Gripfixings Ipswich,Shear nuts - CHANTRY FENCE INSTALLATION,69.33,Miscellaneous Stock  - Purchases
22-Oct-19,Culture & Environment Services,Groundsman Tools And Supp,"Pole Pruner helmets, loppers and litter pickers",184.56,Clothing / Uniform & Laundry
03-Oct-19,Culture & Environment Services,Groundsman Tools And Supp,14� Handle HOOK 6� Handle HOOK for cutting back bushes,112.89,Materials and Supplies - Miscellaneous
10-Oct-19,Culture & Environment Services,Groundsman Tools And Supp,3x hedge Hooks 3x Straight blade shears,96.30,Materials and Supplies - Miscellaneous
10-Oct-19,Culture & Environment Services,Groundsman Tools And Supp,Returned Money for - 14� Handle HOOK 6� Handle HOOK,-112.89,Materials and Supplies - Miscellaneous
22-Oct-19,Culture & Environment Services,Groundsman Tools And Supp,"Pole Pruner helmets, loppers and litter pickers",125.75,Materials and Supplies - Miscellaneous
23-Oct-19,Culture & Environment Services,Groundsman Tools And Supp,Loppers,55.08,Materials and Supplies - Miscellaneous
16-Oct-19,Culture & Environment Services,Gsproducts Co Uk,Stainless Steel Turnbuckles for tab track replacement,19.94,Fixtures & Fittings
09-Oct-19,Culture & Environment Services,Harbro Supplies Ltd,supplies for masonry works,242.53,Goods for Resale - Bereavement
15-Oct-19,Culture & Environment Services,Hg Gladwell & Sons,Duck Food - Christchurch Park,43.30,Materials and Supplies - Miscellaneous
28-Oct-19,Culture & Environment Services,Homebase Ltd 650,Rope,7.50,Equipment / Furniture / Materials
04-Oct-19,Culture & Environment Services,Horticultural Sppls Ltd,Rakes/Pruner/Saw/Shears - WHITTON SC,77.46,Materials and Supplies - Miscellaneous
17-Oct-19,Culture & Environment Services,Horticultural Sppls Ltd,Ballast - MURRAY ROAD REC - Landscape Team,33.00,Miscellaneous Stock  - Purchases
15-Oct-19,Culture & Environment Services,Hussey Knights Ltd,Plans printed for Sproughton,13.83,Miscellaneous Stock  - Purchases
28-Oct-19,Culture & Environment Services,Iceland,Hand soap,5.00,Cleaning Supplies
15-Oct-19,Culture & Environment Services,Id Specialist Machiner,Aebi Parts,325.78,Equipment - Repairs
31-Oct-19,Culture & Environment Services,Indespension,Trailer lighting cable,36.30,Equipment / Furniture / Materials
24-Oct-19,Culture & Environment Services,Indespension,Tool box for straps,35.00,Miscellaneous Expenses
03-Oct-19,Culture & Environment Services,Indespension,Security devices for trailers stored in the yard,36.75,Miscellaneous Stock  - Purchases
16-Oct-19,Culture & Environment Services,Indespension,Tailgate pins - LANDSCAPE TEAM,1.35,Miscellaneous Stock  - Purchases
04-Oct-19,Culture & Environment Services,Ispwich Ranso,Toilet signs,7.97,Equipment / Furniture / Materials
24-Oct-19,Culture & Environment Services,Ispwich Ranso,Cement - BRAMFORD REC - Landscape Team,18.32,Miscellaneous Stock  - Purchases
02-Oct-19,Culture & Environment Services,J P Lennard Ltd,Woggle Trolley Replacement CP,300.40,Equipment / Furniture / Materials
11-Oct-19,Culture & Environment Services,J P Lennard Ltd,Replacement parts for anti-wave ropes.,386.21,Equipment / Furniture / Materials
22-Oct-19,Culture & Environment Services,J P Lennard Ltd,poolside clock,283.82,Equipment / Furniture / Materials
24-Oct-19,Culture & Environment Services,Kaercher Ecomuk,wet vac,83.32,Equipment / Furniture / Materials
03-Oct-19,Culture & Environment Services,Kings,Keys Cut - PARK PATROL,16.25,Equipment Hire
15-Oct-19,Culture & Environment Services,Landscape Supply Compa,Line Winders - SPROUGHTON SITE,143.50,Miscellaneous Stock  - Purchases
07-Oct-19,Culture & Environment Services,Leisureteq,New bottom step that broke to deep end pool steps and fixing,40.40,Equipment / Furniture / Materials
21-Oct-19,Culture & Environment Services,Lumberjacks,Wooden posts - CHANTRY PARK,9.83,Materials and Supplies - Miscellaneous
23-Oct-19,Culture & Environment Services,Lumberjacks,Stakes for mark out hazards in the parks,195.00,Materials and Supplies - Miscellaneous
16-Oct-19,Culture & Environment Services,Lumberjacks,Timber - Murray Road Rec - Landscape Team,26.33,Miscellaneous Stock  - Purchases
23-Oct-19,Culture & Environment Services,Lumberjacks,Sleepers for School work,746.70,Miscellaneous Stock  - Purchases
02-Oct-19,Culture & Environment Services,Machine Mart Ltd,Bolt cutter - Play Area Inspector,65.98,Equipment / Furniture / Materials
09-Oct-19,Culture & Environment Services,Machine Mart Ltd,Straps for tread - CHANTRY HUB,39.97,Materials and Supplies - Miscellaneous
02-Oct-19,Culture & Environment Services,Makro Self Service Ipswic,"tea, coffee and sugar",39.97,Miscellaneous Expenses
30-Oct-19,Culture & Environment Services,Mark One Hire Ltd,Hire of Genie Lift for Calendar Girls Rigging,515.02,Equipment Hire
03-Oct-19,Culture & Environment Services,Mde Electrical Supplie,2D 4 pin light bulbs,38.25,Equipment / Furniture / Materials
08-Oct-19,Culture & Environment Services,Morplan Ltd,retail equip,73.85,Goods for Resale - Equipment
07-Oct-19,Culture & Environment Services,Music World,Music stands for back stage,67.47,Equipment / Furniture / Materials
18-Oct-19,Culture & Environment Services,Net World Sports,Velcro straps (for nets on indoor 5v5 goals),15.78,Equipment / Furniture / Materials
17-Oct-19,Culture & Environment Services,Newitts.Com,Goal nets for indoor 5v5 goals,36.29,Equipment / Furniture / Materials
21-Oct-19,Culture & Environment Services,Paypal,Items for the panto press launch,12.50,Catering/Beverages
15-Oct-19,Culture & Environment Services,Paypal,Handles for Kango,60.73,Equipment - Repairs
07-Oct-19,Culture & Environment Services,Paypal,Arb Suppies - ropes Stihl Flex - Stihl Ranger,447.37,Equipment / Furniture / Materials
28-Oct-19,Culture & Environment Services,Paypal,booster seat cushion for adults,8.32,Equipment / Furniture / Materials
30-Oct-19,Culture & Environment Services,Poundland Ltd 1344,Milk for FOH and Backstage,1.75,Equipment / Furniture / Materials
14-Oct-19,Culture & Environment Services,Poundland Ltd 1719,shopmo cleaning materials,2.50,Cleaning Supplies
17-Oct-19,Culture & Environment Services,Premier Farnell,LED Bulbs for circle lounge,20.25,Equipment / Furniture / Materials
11-Oct-19,Culture & Environment Services,Ravensden Plc,centipede toys + VAT and Delivery charge- resale Holywells,33.60,Products / Materials held for Resale
03-Oct-19,Culture & Environment Services,Ross Handling Ltd,End caps for disabled bed,10.54,Equipment / Furniture / Materials
18-Oct-19,Culture & Environment Services,Rs Components,CAT5 Cable connectors and crimping tool,27.89,Equipment / Furniture / Materials
18-Oct-19,Culture & Environment Services,Rs Components,CAT5 Cable connectors and crimping tool,27.89,Equipment / Furniture / Materials
31-Oct-19,Culture & Environment Services,Ruskin Lifting,Shackles for Tab Track replacement,32.80,Fixtures & Fittings
11-Oct-19,Culture & Environment Services,Ryman,White board pens,31.64,Equipment / Furniture / Materials
18-Oct-19,Culture & Environment Services,Ryman,A4 Paper,4.16,Materials and Supplies - Miscellaneous
30-Sep-19,Culture & Environment Services,Ryman,Picture hooks for kitchen,3.74,Stationery
07-Oct-19,Culture & Environment Services,Ryman,Labels,16.66,Stationery
22-Oct-19,Culture & Environment Services,Ryman,2020 diary,8.32,Stationery
30-Oct-19,Culture & Environment Services,Sacktrucksdirect.C,acid trolley,64.16,Equipment / Furniture / Materials
15-Oct-19,Culture & Environment Services,Safelincs,Zoll Defib Pads For Waterfront Gym,76.50,Equipment / Furniture / Materials
11-Oct-19,Culture & Environment Services,Sainsburys S/mkt,Vegan food for buffet,6.83,Catering/Beverages
29-Oct-19,Culture & Environment Services,Sainsburys S/mkt,Lemons,4.17,Catering/Beverages
18-Oct-19,Culture & Environment Services,Sainsburys S/mkt,Sundries for Waste Services,5.17,Materials and Supplies - Miscellaneous
02-Oct-19,Culture & Environment Services,Sainsburys S/mkt,48 Downside Close - apology,19.00,Stationery
26-Sep-19,Culture & Environment Services,Sainsburys S/mkts,Dietary food for conference 51174,3.4,Catering/Beverages
04-Oct-19,Culture & Environment Services,Sainsburys S/mkts,Lemons,6.30,Catering/Beverages
04-Oct-19,Culture & Environment Services,Sainsburys S/mkts,Lemons,6.30,Catering/Beverages
23-Oct-19,Culture & Environment Services,Sainsburys S/mkts,Lemons,2.80,Catering/Beverages
24-Oct-19,Culture & Environment Services,Sainsburys S/mkts,Lemons,3.75,Catering/Beverages
25-Oct-19,Culture & Environment Services,Sainsburys S/mkts,Lemons,1.04,Catering/Beverages
31-Oct-19,Culture & Environment Services,Sainsburys S/mkts,Food for Osprey Conference 51170,2.00,Catering/Beverages
04-Oct-19,Culture & Environment Services,Sainsburys S/mkts,Sundries for Waste Services,2.20,Materials and Supplies - Miscellaneous
10-Oct-19,Culture & Environment Services,Sainsburys S/mkts,Stationary for course,12.50,Materials and Supplies - Miscellaneous
10-Oct-19,Culture & Environment Services,Sainsburys S/mkts,Sundries for Waste Services,1.90,Materials and Supplies - Miscellaneous
14-Oct-19,Culture & Environment Services,Sainsburys S/mkts,Sundries for Waste Services,1.83,Materials and Supplies - Miscellaneous
10-Oct-19,Culture & Environment Services,Screens-R-Us-Limited,WS replacement AV11 XBC F6449,144.00,Direct Transport Costs
28-Oct-19,Culture & Environment Services,Screens-R-Us-Limited,Replacement Windscreen AX19 XCR,258.00,Direct Transport Costs
09-Oct-19,Culture & Environment Services,Screens-R-Us-Limited,Replacement windscreen AP07 YNZ,138.00,Parks Vehicle Costs
15-Oct-19,Culture & Environment Services,Screwfix Dir. Ltd,Line Marking Paint - Landscape Team,28.32,Miscellaneous Stock  - Purchases
17-Oct-19,Culture & Environment Services,Screwfix Dir. Ltd,Cable ties/tylon tape/beacon light - Landscape Team,57.98,Miscellaneous Stock  - Purchases
18-Oct-19,Culture & Environment Services,Screwfix Dir. Ltd,Raw plugs & Resin - CCP BENCHES - Landscape Team,50.44,Miscellaneous Stock  - Purchases
31-Oct-19,Culture & Environment Services,Screwfix Dir. Ltd,Padlock for tool cupboard - LANDSCAPE TEAM,8.32,Miscellaneous Stock  - Purchases
08-Oct-19,Culture & Environment Services,Screwfix Direct,Toilet signs returned - refund,-7.97,Equipment / Furniture / Materials
09-Oct-19,Culture & Environment Services,Screwfix Direct,hoses and connectors,57.82,Equipment / Furniture / Materials
24-Oct-19,Culture & Environment Services,Screwfix Direct,"Gym clips, cable ties, nuts and bolts.",26.05,Equipment / Furniture / Materials
15-Oct-19,Culture & Environment Services,Screwfix Direct,Key cabinet,74.99,Materials and Supplies - Miscellaneous
21-Oct-19,Culture & Environment Services,Screwfix Direct Lt,Resin - Landscape Team,21.65,Miscellaneous Stock  - Purchases
24-Oct-19,Culture & Environment Services,Screwfix Direct Lt,various screws - BRAMFORD REC - Landscape Team,7.32,Miscellaneous Stock  - Purchases
29-Oct-19,Culture & Environment Services,Screwfix Direct Lt,Hard point handsaws - Landscape Team,36.65,Miscellaneous Stock  - Purchases
25-Oct-19,Culture & Environment Services,Sharman Caravans,calor gas refill for events,41.75,Materials and Supplies - Miscellaneous
10-Oct-19,Culture & Environment Services,Shrubland Woodland Produc,Fishing Swims - CHANTRY HUB,67.81,Materials and Supplies - Miscellaneous
14-Oct-19,Culture & Environment Services,Sjasuplies,First Aid Equipment,50.93,Materials and Supplies - Miscellaneous
02-Oct-19,Culture & Environment Services,Sp * Gym Stuff Ltd,Replacement part for pull down machine,27.48,Equipment / Furniture / Materials
24-Oct-19,Culture & Environment Services,Sp * Nationwide Traile,Line Winder - CHRISTCHURCH HUB,12.99,Materials and Supplies - Miscellaneous
10-Oct-19,Culture & Environment Services,Sproughton Garden Machine,Repairs to leaf blowers,50.00,Transport - Repairs
23-Oct-19,Culture & Environment Services,Staples.Co.Uk,Tape Dispenser,6.89,Stationery
08-Oct-19,Culture & Environment Services,Suffolk County Council,death certificate,11.00,Holding A/C - General Use
14-Oct-19,Culture & Environment Services,Suffolk County Council,Road Closure Application Fee - Christmas Lights Switch On,50.00,Non Contracted_Professional Services
14-Oct-19,Culture & Environment Services,Suffolk County Council,Road Closure Application Fee - Christmas Market,50.00,Non Contracted_Professional Services
28-Oct-19,Culture & Environment Services,Suffolk County Council,Skip penalty and extension for Wastesaver,100.00,Non Contracted_Professional Services
21-Oct-19,Culture & Environment Services,Suffolk Fastener (Ipsw,Swing Fixings - BRAMFORD LANE REC - Play Area Inspector,18.99,Equipment / Furniture / Materials
25-Oct-19,Culture & Environment Services,Surf & Turf Instant Sh,gazebo sides,750.00,Premises Costs - Miscellaneous
21-Oct-19,Culture & Environment Services,Tcob Ltd,Emergency access gate sign and fire action signs,14.65,Fixtures & Fittings
02-Oct-19,Culture & Environment Services,Tesco Store 2748,Sundries for Waste Services,2.18,Materials and Supplies - Miscellaneous
28-Oct-19,Culture & Environment Services,Tesco Store 2748,volunteer refreshments for event,12.37,Miscellaneous Expenses
25-Sep-19,Culture & Environment Services,Tesco Store 3240,Gin for Regent & Lemons,100,Catering/Beverages
08-Oct-19,Culture & Environment Services,Tesco Store 3240,Food for Derivco Conference,41.90,Catering/Beverages
08-Oct-19,Culture & Environment Services,Tesco Store 3240,Food for Derivco Conference,1.25,Catering/Beverages
10-Oct-19,Culture & Environment Services,Tesco Store 3240,Food for conferences etc,240.74,Catering/Beverages
10-Oct-19,Culture & Environment Services,Tesco Store 3240,Food for conferences etc,29.17,Equipment / Furniture / Materials
16-Oct-19,Culture & Environment Services,Tesco Stores 6126,Toiletries for shower room - Christchurch Hub,1.75,Materials and Supplies - Miscellaneous
17-Oct-19,Culture & Environment Services,Tesco Stores 6126,Toiletries for shower room - Christchurch Hub,2.71,Miscellaneous Stock  - Purchases
07-Oct-19,Culture & Environment Services,The Range,"Pom poms, tissue paper and plastic ties",7.12,Equipment / Furniture / Materials
23-Oct-19,Culture & Environment Services,The Range,Christmas decorations - garlands,102.69,Equipment / Furniture / Materials
08-Oct-19,Culture & Environment Services,The Range,Items for the Ark - Park Patrol,38.71,Miscellaneous Expenses
01-Oct-19,Culture & Environment Services,The Works,Paint for Christmas parties,1.67,Equipment / Furniture / Materials
10-Oct-19,Culture & Environment Services,Toolstation Ltd,PPE Spray Course - CHANTRY HUB,22.42,Clothing / Uniform & Laundry
02-Oct-19,Culture & Environment Services,Toolstation Ltd,Trade Platform Ladder - Pay Area Inspector,43.31,Equipment / Furniture / Materials
10-Oct-19,Culture & Environment Services,Toolstation Ltd,Coach bolts/nut & washer - CHANTRY HUB,12.72,Materials and Supplies - Miscellaneous
23-Oct-19,Culture & Environment Services,Toolstation Ltd,Drill bit & brick line - BRAMFORD REC - Landscape Team,20.37,Miscellaneous Stock  - Purchases
30-Oct-19,Culture & Environment Services,Toolstation Ltd,Various parts fence install - CHANTRY FENCING - Landscape Te,79.76,Miscellaneous Stock  - Purchases
31-Oct-19,Culture & Environment Services,Tp Ipswich,Dry Kiln sand for Town Centre,119.35,Equipment / Furniture / Materials
09-Oct-19,Culture & Environment Services,Trade Counter Direct,water pump pliers,61.25,Equipment / Furniture / Materials
21-Oct-19,Culture & Environment Services,Trainline,Travel to London,16.40,Employee Expenses
02-Oct-19,Culture & Environment Services,Trainline,train fare for ZB_TRAINING,62.30,Training Expenses
09-Oct-19,Culture & Environment Services,Trainline.Com,Train travel,36.87,Training Expenses
07-Oct-19,Culture & Environment Services,Turner Tool Hire,MEWP Hire,429.42,Equipment Hire
19-Jun-19,Culture & Environment Services,Value Products Ltd,Safety Glasses,24.87,Clothing / Uniform & Laundry
21-Oct-19,Culture & Environment Services,Victoria Nurseries,Compost - Christchurch Hub,41.67,Materials and Supplies - Miscellaneous
23-Oct-19,Culture & Environment Services,Victoria Nurseries,Various flowers for CCP - Christchurch Hub,91.67,Materials and Supplies - Miscellaneous
23-Oct-19,Culture & Environment Services,Victoria Nurseries,Christchurch plants,525.00,Miscellaneous Stock  - Purchases
08-Oct-19,Culture & Environment Services,W J Green Limited,Handle Housing repair on Stihl MS201TC-M,39.29,Materials and Supplies - Miscellaneous
11-Oct-19,Culture & Environment Services,Waitrose Ltd,Food for conference 51189,3.05,Catering/Beverages
22-Oct-19,Culture & Environment Services,Waitrose Ltd,Milk for IBC Meeting (No Show Code Available),1.35,Catering/Beverages
31-Oct-19,Culture & Environment Services,Waitrose Ltd,Rob Beckett Rider requirements,11.25,Catering/Beverages
15-Oct-19,Culture & Environment Services,Wh Smith,Calculator ,4.98,Equipment / Furniture / Materials
31-Oct-19,Culture & Environment Services,Wh Smith,New Folders Polly Pockets reissue for R/A COSHH PSOP FIRE,32.48,Stationery
10-Oct-19,Culture & Environment Services,Wickes Ipswich,Ballast & Polypropylene - CHANTRY HUB,11.82,Materials and Supplies - Miscellaneous
15-Oct-19,Culture & Environment Services,Wickes Ipswich,Paint for the park,91.67,Materials and Supplies - Miscellaneous
16-Oct-19,Culture & Environment Services,Wickes Ipswich,screw driver bits,4.82,Materials and Supplies - Miscellaneous
21-Oct-19,Culture & Environment Services,Wickes Ipswich,Plywood - LEAF BOARD SIGNS - Chantry Hub,15.57,Materials and Supplies - Miscellaneous
24-Oct-19,Culture & Environment Services,Wickes Ipswich,Cement - SPRITES SCHOOL SLAB LAYING - Chantry Hub,7.00,Materials and Supplies - Miscellaneous
25-Oct-19,Culture & Environment Services,Wickes Ipswich,Cement - SPRITES SCHOOL SLAB LAYING - Chantry Hub,14.00,Materials and Supplies - Miscellaneous
30-Oct-19,Culture & Environment Services,Wickes Ipswich,Postcrete/Tap connect/wd40 - CHANTRY FENCIN - Landscape Team,120.17,Miscellaneous Stock  - Purchases
03-Oct-19,Culture & Environment Services,Wilko Retail Limited,"hooks, knife, measure",11.87,Equipment / Furniture / Materials
18-Oct-19,Culture & Environment Services,Wilko Retail Limited,screwdriver,3.75,Equipment / Furniture / Materials
21-Oct-19,Culture & Environment Services,Wm Morrisons Store,key cutting for bin stores,3.33,Materials and Supplies - Miscellaneous
08-Oct-19,Culture & Environment Services,Www.Banneruk.Com,Stationery for Gipping House,7.17,Stationery
17-Oct-19,Culture & Environment Services,Www.Banneruk.Com,Stationary,18.77,Stationery
17-Oct-19,Culture & Environment Services,Www.Banneruk.Com,Stationary for Posters,80.92,Stationery
24-Oct-19,Culture & Environment Services,Www.Banneruk.Com,Stationary,13.56,Stationery
24-Oct-19,Culture & Environment Services,Www.Banneruk.Com,Stationary,43.07,Stationery
21-Oct-19,Culture & Environment Services,Www.Brett.Co.Uk/Aggreg,20 tonnes Type 1 aggregate,423.00,Materials and Supplies - Miscellaneous
16-Oct-19,Culture & Environment Services,Www.British-Gymnastics,Gymnastic Certificates & Badges,115.98,Goods for Resale - Equipment
21-Oct-19,Culture & Environment Services,Www.Direct2u.Co.Uk,14 wheelie bins for Holywells Park,588.00,Equipment / Furniture / Materials
03-Oct-19,Culture & Environment Services,Www.Joeandsephs.Co.Uk,Popcorn,264.95,Catering/Beverages
18-Oct-19,Culture & Environment Services,Www.Joeandsephs.Co.Uk,Popcorn for Regent,529.92,Catering/Beverages
09-Oct-19,Culture & Environment Services,Www.Jordanfitness.Co.Uk,Ankle straps for weights/cable multi gym,28.47,Equipment / Furniture / Materials
07-Oct-19,Culture & Environment Services,Www.Licencecheck.Co.Uk,Licence Check credits,"1,050.00",Transport Costs - Miscellaneous
25-Oct-19,Culture & Environment Services,Www.Lifesaversdirect,swim badges,105.00,Equipment / Furniture / Materials
10-Oct-19,Culture & Environment Services,Www.Lifesaversdirect,NPLQ Candidate Packs Oct 2019,704.00,Training Expenses
21-Oct-19,Culture & Environment Services,Www.Lifesaversdirect,Manikin Wipes 200 & RLSS UK Torpedo Buoy - Standard,171.17,Training/Courses Running Costs
07-Oct-19,Culture & Environment Services,Www.Theworks.Co.Uk,"2020 Diary, Calendar and equipment for half term session",2.50,Equipment / Furniture / Materials
07-Oct-19,Culture & Environment Services,Www.Theworks.Co.Uk,"2020 Diary, Calendar and equipment for half term session",6.25,Stationery
08-Oct-19,Culture & Environment Services,Www.Theworks.Co.Uk,Refund for item that was out of stock - folder,-1.67,Stationery
17-Oct-19,Culture & Environment Services,Www.Toolstation.Com,Gauntlets for Spraying,22.45,Clothing / Uniform & Laundry
04-Oct-19,Culture & Environment Services,Www.Toolstation.Com,nuts and washers,10.47,Equipment / Furniture / Materials
23-Sep-19,Development,Aldi 776 104,duck tape,2.07,Premises Costs - Miscellaneous
23-Oct-19,Development,Amazon.Co.Uk,Cellotape for site notices,9.07,Stationery
30-Oct-19,Development,Anglian Water,Survey for re-development,51.00,Capital Expenditure
30-Oct-19,Development,Anglian Water,Survey for re-development,42.50,Capital Expenditure
10-Oct-19,Development,Asda Stores 4278,j cloths,3.54,Cleaning Supplies
10-Oct-19,Development,Asda Stores 4278,j cloths,8.65,Subsistence & Conference/Seminar / Event Expenses
02-Oct-19,Development,Battery Station,batteries,13.46,Premises Costs - Miscellaneous
03-Oct-19,Development,Digital Id,id card holders,60.95,Equipment / Furniture / Materials
28-Oct-19,Development,Eazzee.Co.Uk,"Black Shell Jackets for MB, JS & TS",167.05,Clothing / Uniform & Laundry
30-Oct-19,Development,Fast Key Services Limi,lost keys,6.05,Fixtures & Fittings
20-Sep-19,Development,Geodesys,113 Shetland cl,89.83,Capital Expenditure
07-Oct-19,Development,Geodesys,search Arras Sq,337.00,Capital Expenditure
21-Oct-19,Development,Geodesys,11 Kenyon st,96.35,Capital Expenditure
10-Oct-19,Development,Horizon Environment Sr,pest control,49.75,Premises Costs - Miscellaneous
30-Oct-19,Development,Instit Of Occptnl Safe,IOSH subs 2019/20,130.00,Employee Expenses
17-Oct-19,Development,J P Chick & Partne,Emergency call out Radcliffe Dr,250.00,Non Contracted_Professional Services
07-Oct-19,Development,Nochex.*utilitysearch,search Arras Sq,100.17,Capital Expenditure
25-Oct-19,Development,Office Amigo,bins for recycling,122.24,Premises Costs - Miscellaneous
24-Oct-19,Development,Riba Services,Fire Safety Approved Documents x 10,250.00,Publications - Purchase
08-Oct-19,Development,Sainsburys S/mkts,Bottled water for Boiler switchover,10.00,Capital Expenditure
28-Oct-19,Development,The Institution Of,Seasonal lights installations guidance,70.00,Publications - Purchase
16-Oct-19,Development,"Www,eastsuffolk.Gov.Uk",Partnership Inspections Mayfield Ataka Rd,96.00,Non Contracted_Professional Services
21-Oct-19,Development,"Www,eastsuffolk.Gov.Uk",Partnership Inspections 4 Woodbridge Walk,192.00,Non Contracted_Professional Services
25-Oct-19,Development,"Www,eastsuffolk.Gov.Uk",Partnership Inspections 26 Springfield,192.00,Non Contracted_Professional Services
20-Sep-19,Development,Www.Courierexpert.Co.U,courier to cambs,85,Postage Costs
22-Oct-19,Development,Www.Latitudemaps.Co.Uk,Latitude map,13.75,Publications - Purchase
08-Oct-19,Development,Www.Sackers .Co.Uk,bins emptied,686.03,Removal/Emptying of Waste
18-Oct-19,Development,Www.Uk.Edensprings.Com,paper cups,20.00,Materials and Supplies - Miscellaneous
25-Oct-19,Development,Www.Wstraining.Uk,NEBOSH Exam re-sit fee,95.00,Training Expenses
31-Oct-19,Finance & Revenues,Amazon.Co.Uk,2 x USB DVD Drive,36.90,Computer Equipment - Purchase
16-Oct-19,Finance & Revenues,Amznmktplace,Protective cases for Smartphones,5.89,Telecommunication Costs - Mobiles
16-Oct-19,Finance & Revenues,Amznmktplace,Protective cases for Smartphones,5.89,Telecommunication Costs - Mobiles
16-Oct-19,Finance & Revenues,Amznmktplace,Protective cases for Smartphones,5.89,Telecommunication Costs - Mobiles
16-Oct-19,Finance & Revenues,Amznmktplace,Protective cases for Smartphones,5.90,Telecommunication Costs - Mobiles
28-Oct-19,Finance & Revenues,Amznmktplace,Protective cases for Smartphones,7.70,Telecommunication Costs - Mobiles
28-Oct-19,Finance & Revenues,Amznmktplace,Protective cases for Smartphones,7.69,Telecommunication Costs - Mobiles
04-Oct-19,Finance & Revenues,Amznmktplace Amazon.Co.Uk,Protective cases for Smartphones,29.75,Telecommunication Costs - Mobiles
24-Oct-19,Finance & Revenues,Amznmktplace Amazon.Co.Uk,Protective cases for Smartphones,5.89,Telecommunication Costs - Mobiles
24-Oct-19,Finance & Revenues,Amznmktplace Amazon.Co.Uk,Protective cases for Smartphones,5.89,Telecommunication Costs - Mobiles
24-Oct-19,Finance & Revenues,Amznmktplace Amazon.Co.Uk,Protective cases for Smartphones,5.89,Telecommunication Costs - Mobiles
24-Oct-19,Finance & Revenues,Amznmktplace Amazon.Co.Uk,Protective cases for Smartphones,5.90,Telecommunication Costs - Mobiles
25-Oct-19,Finance & Revenues,Cbt Nuggets,ICT Training,47.51,Training Expenses
08-Oct-19,Finance & Revenues,Comms Express Ltd,Data switches,173.88,Computer Equipment - Purchase
10-Oct-19,Finance & Revenues,Comms Express Ltd,Stock fibre cables,40.45,Computer Equipment - Purchase
14-Oct-19,Finance & Revenues,Ebuyer (UK) Ltd,Laptop Sleeves,201.25,Equipment / Furniture / Materials
30-Oct-19,Finance & Revenues,Google,API usage,13.33,Computer Software - Purchase
15-Oct-19,Finance & Revenues,Greater Anglia Trains,Ipswich to London return 20/11/19 ,42.00,Use Of Public Transport
29-Oct-19,Finance & Revenues,Greater Anglia Trains,Ipswich-London Return Train Tickets 6/11/19,84.00,Use Of Public Transport
15-Oct-19,Finance & Revenues,Ict Reverse Asset Mngt,Secure disposal of laptops/desktops,377.64,Computer Equipment - Purchase
31-Oct-19,Finance & Revenues,Kaplan Financial Ltd,AAT Exam & Admin Fee ,35.00,Training Expenses
31-Oct-19,Finance & Revenues,Kaplan Financial Ltd,AAT Exam & Admin Fee ,46.00,Training Expenses
30-Oct-19,Finance & Revenues,Lon Stck Exc/net,Legal Entity Identifier Annual Renewal 21/11/19 to 20/11/20,65.00,Non Contracted_Professional Services
01-Oct-19,Finance & Revenues,Ncs*cima Vue Exam,CIMA Exam ,110.00,Training Expenses
09-Oct-19,Finance & Revenues,Paypal,Domain renewal,31.98,Computer Software - Purchase
15-Oct-19,Finance & Revenues,Paypal,Domain renewal,29.99,Web Service costs
26-Sep-19,Finance & Revenues,"Probrand Ltd.,",Incorrectly ordered,135,Computer Consumables and other Minor IT costs
22-Oct-19,Finance & Revenues,"Probrand Ltd.,",Refund for duplicate product sent,-135.00,Computer Consumables and other Minor IT costs
25-Oct-19,Finance & Revenues,Require It Ltd,Replacement Surface Screen,166.80,Computer Equipment - Purchase
08-Oct-19,Finance & Revenues,Service Fees - Fraedom Pty Ltd,Fraedom Card Usage Fees 01/09/19 to 30/09/19,383.15,Computer Software - Maintenance
30-Oct-19,Finance & Revenues,Smartsheet,IBC Smartsheet License Renewal,"1,357.90",Computer Software - Maintenance
09-Oct-19,Finance & Revenues,Southend County,Summons for Council Tax and NDR,509.00,Legal Services & Fees
23-Oct-19,Finance & Revenues,Southend County,CTAX and NDR Summons,299.50,Legal Services & Fees
25-Oct-19,Finance & Revenues,Trainline.Com,Off Peak Day return Ipswich to London ,19.78,Use Of Public Transport
04-Oct-19,Finance & Revenues,Www.4gon.Co.Uk,Replacement routers for VirginMedia sites,"1,537.45",Computer Equipment - Purchase
15-Oct-19,Housing & Community Services,2co.Com*melodyloops,hold music,24.17,Telecommunication Costs - Business Phones
29-Oct-19,Housing & Community Services,Advanta Marketing,Parking Disc Holders x250,71.50,Premises Costs - Miscellaneous
14-Oct-19,Housing & Community Services,Amazon Prime,Amazon Prime,7.99,Equipment / Furniture / Materials
04-Oct-19,Housing & Community Services,Amazon.Co.Uk,Squared pads x5 for officers,26.88,Equipment / Furniture / Materials
08-Oct-19,Housing & Community Services,Amazon.Co.Uk,2x 10.8v Batteries,49.92,Equipment / Furniture / Materials
21-Oct-19,Housing & Community Services,Amazon.Co.Uk,Building Regs ,30.32,Publications - Purchase
01-Oct-19,Housing & Community Services,Amznmktplace,Flash Mop fluid & Pads ,20.41,Equipment / Furniture / Materials
14-Oct-19,Housing & Community Services,Amznmktplace,"Drop Keys, Screen Protectors, phone cases, chargers",11.50,Equipment / Furniture / Materials
18-Oct-19,Housing & Community Services,Amznmktplace,SDS CHUCK KEY FOR 36V DRILL C ELLISTON,13.40,Equipment / Furniture / Materials
28-Oct-19,Housing & Community Services,Amznmktplace,Fire Keys,17.25,Materials and Supplies - Miscellaneous
14-Oct-19,Housing & Community Services,Amznmktplace,"Drop Keys, Screen Protectors, phone cases, chargers",114.85,Telecommunication Costs - Mobiles
16-Oct-19,Housing & Community Services,Amznmktplace Amazon.Co.Uk,dRESSING TOOL FOR GRINDING MACHINE IN THE WOODMILL ,19.07,Premises Costs - Miscellaneous
28-Oct-19,Housing & Community Services,Argos Ltd,Batteries for Defib,49.95,Stationery
25-Oct-19,Housing & Community Services,Bunzl,"Toilet Tissue, blue roll, antib gel, antibac wipes, sponges,",108.07,Cleaning Supplies
24-Oct-19,Housing & Community Services,Chartered Institute Of En,CIEH course 28/11/19 ,195.00,Training Expenses
04-Oct-19,Housing & Community Services,Cpw Locksmiths And Securi,"PSH work 11 Granville St, assist with locks",120.00,Non Contracted_Professional Services
14-Oct-19,Housing & Community Services,Eoe Coop,Utility charge for tenant ,10.00,Equipment / Furniture / Materials
14-Oct-19,Housing & Community Services,Eoe Coop,Utility charge for tenant ,10.00,Equipment / Furniture / Materials
22-Oct-19,Housing & Community Services,Eoe Coop,Meter top up for decanted tenant,10.00,Equipment / Furniture / Materials
24-Oct-19,Housing & Community Services,Eoe Coop,Utility top up for tenant,20.00,Equipment / Furniture / Materials
15-Oct-19,Housing & Community Services,Gen Register Office,Birth certificate,14.00,Services for Clients
24-Oct-19,Housing & Community Services,Graham,3601536 Thermal shower,105.00,Materials and Supplies - Miscellaneous
22-Oct-19,Housing & Community Services,Greater Anglia Trains,Client one way Peterborough,26.00,Services for Clients
28-Oct-19,Housing & Community Services,Greater Anglia Trains,Train tickets SM and LD RS London,125.85,Specific Campaigns / Projects expenditure
11-Oct-19,Housing & Community Services,Greater Anglia Trains,Train tickets,123.90,Use Of Public Transport
21-Oct-19,Housing & Community Services,Greater Anglia Trains,Train tickets,13.60,Use Of Public Transport
30-Oct-19,Housing & Community Services,Hotel On Booking.Com Lynd,Hotel Accommodation for user group in Walsall,99.00,Training Expenses
22-Oct-19,Housing & Community Services,Ipswich Bc,Dentist parking refund,-65.00,Services for Clients
21-Oct-19,Housing & Community Services,Ipswich Borough Co,Dentist van parking to be refunded,65.00,Services for Clients
22-Oct-19,Housing & Community Services,Ipswich Borough Co,Dentist Van parking,10.00,Services for Clients
28-Oct-19,Housing & Community Services,Ipswich Borough Co,Parking permit for dental services for homeless,65.00,Services for Clients
28-Oct-19,Housing & Community Services,Ipswich Borough Co,Parking Permit for dental services for homeless,65.00,Services for Clients
10-Oct-19,Housing & Community Services,J2 Efax Plus Service,Monthly fee for secure fax system,11.00,Miscellaneous Expenses
11-Oct-19,Housing & Community Services,Land Registry,Check for land registry in relation to Nansen Road church,3.00,Legal Services & Fees
31-Oct-19,Housing & Community Services,Land Registry,Land registry fees-CCTV title deeds,3.00,Legal Services & Fees
10-Oct-19,Housing & Community Services,Liquidline Vt,coffee and sugar,90.72,Stationery
07-Oct-19,Housing & Community Services,Sainsburys Petrol,Unleaded Petrol for small plant in hireshop.,9.98,Equipment / Furniture / Materials
16-Oct-19,Housing & Community Services,Sainsburys S/mkts,Get Together refreshments,13.30,Housing  - other Costs
03-Oct-19,Housing & Community Services,Sainsburys S/mkts,Staff Milk,0.80,Materials and Supplies - Miscellaneous
07-Oct-19,Housing & Community Services,Sainsburys S/mkts,Staff Milk,0.80,Materials and Supplies - Miscellaneous
09-Oct-19,Housing & Community Services,Sainsburys S/mkts,Staff Coffee,6.75,Materials and Supplies - Miscellaneous
16-Oct-19,Housing & Community Services,Sainsburys S/mkts,Staff Milk,0.80,Materials and Supplies - Miscellaneous
28-Oct-19,Housing & Community Services,Sainsburys S/mkts,Milk for staff,0.80,Materials and Supplies - Miscellaneous
15-Oct-19,Housing & Community Services,Screwfix Direct,various x6 Plumbing Hand Tools,77.87,Equipment / Furniture / Materials
31-Oct-19,Housing & Community Services,Screwfix Direct,3603332 2 x 6mm Stubby Drills,4.65,Materials and Supplies - Miscellaneous
18-Oct-19,Housing & Community Services,Spicerhaart Residential,RIA and Deposit,"1,250.00",Services for Clients
17-Oct-19,Housing & Community Services,Staples.Co.Uk,replacement office chair JK Dundee Hse,71.99,Stationery
11-Oct-19,Housing & Community Services,Timpson,New keys cut for out of hours emergency keyholders.,43.33,Equipment / Furniture / Materials
17-Oct-19,Housing & Community Services,Toolstation Ltd,REFUND FOR VARIOUS PLUMBING HAND TOOLS,-36.24,Equipment / Furniture / Materials
22-Oct-19,Housing & Community Services,Trainline,Train ticket for new Tenancy Services ,102.62,Training Expenses
28-Oct-19,Housing & Community Services,Trainline,Train ticket ,102.62,Training Expenses
29-Aug-19,Housing & Community Services,Trainline,Train ticket to London for Conference,89.3,Use Of Public Transport
24-Oct-19,Housing & Community Services,Trainline,Train tickets 28/11/19,27.95,Use Of Public Transport
28-Oct-19,Housing & Community Services,Trainline,Train to London,84.82,Use Of Public Transport
22-Oct-19,Housing & Community Services,Trainline.Com,Train ticket for new Tenancy Services HO,135.36,Training Expenses
03-Oct-19,Housing & Community Services,Trainline.Com,Return to Norwich,19.78,Use Of Public Transport
03-Oct-19,Housing & Community Services,Trainline.Com,Refund of train tickets wrong ones booked on 12/9/19,-77.00,Use Of Public Transport
23-Oct-19,Housing & Community Services,Viking Uk,2020 Diaries,301.19,Stationery
21-Oct-19,Housing & Community Services,Waitrose Ltd,Milk,0.96,Materials and Supplies - Miscellaneous
04-Oct-19,Housing & Community Services,Wickes Ipswich,3537244 127mm coving & Adhesive,30.17,Materials and Supplies - Miscellaneous
11-Oct-19,Housing & Community Services,Www.Banneruk.Com,Stationery,72.74,Stationery
14-Oct-19,Housing & Community Services,Www.Banneruk.Com,Stationery,24.56,Stationery
23-Oct-19,Housing & Community Services,Www.Banneruk.Com,Refund for missing/damaged Tippex correction tapes,-24.56,Stationery
24-Oct-19,Housing & Community Services,Www.Banneruk.Com,"Black pens, box files, notebooks, sharpie pens",76.54,Stationery
16-Oct-19,Housing & Community Services,Www.Police-Supplies.Co,Velcro badges for stab vests,235.72,Clothing / Uniform & Laundry
10-Oct-19,Housing & Community Services,Www.Toolstation.Com,Refund for Various plumbing hand tools,-24.98,Equipment / Furniture / Materials
10-Oct-19,Housing & Community Services,Www.Toolstation.Com,Various Plumbing Hand Tools,175.37,Equipment / Furniture / Materials
23-Oct-19,Housing & Community Services,Your Advisors,RIA,86.54,Services for Clients
25-Oct-19,Housing & Community Services,Your Advisors,RIA and deposit,663.46,Services for Clients
03-Oct-19,People & Governance,Amazon.Co.Uk,Velobind strips and punch for Print Room use,33.45,Miscellaneous Stock  - Purchases
13-Sep-19,People & Governance,Amznmktplace,HP304 BLK _Regent HP304 Colour Cllrs,14.72,Computer Consumables and other Minor IT costs
02-Oct-19,People & Governance,Amznmktplace Amazon.Co.Uk,Foam Boards A0 for the print room use,71.62,Miscellaneous Stock  - Purchases
25-Oct-19,People & Governance,Amznmktplace Amazon.Co.Uk,Cardboard Poster Tubes for print room use,12.72,Miscellaneous Stock  - Purchases
23-Oct-19,People & Governance,Doctor In The House Limit,IIA IT course in london,32.46,Training Expenses
23-Oct-19,People & Governance,Doctor In The House Limit,IIA Training Course in london,94.30,Training Expenses
21-Oct-19,People & Governance,Ed Sheeran Made In Suf,100 Pencils for the Half Term Event at the Mansion-recharge,125.00,Equipment / Furniture / Materials
07-Oct-19,People & Governance,Facebk *5na7pnn7j2,Facebook Advertising,320.67,Advertising/Publicity
07-Oct-19,People & Governance,Facebk *5na7pnn7j2,Facebook Advertising,3.37,Advertising/Publicity
07-Oct-19,People & Governance,Facebk *5na7pnn7j2,Facebook Advertising,47.58,Advertising/Publicity
07-Oct-19,People & Governance,Facebk *5na7pnn7j2,Facebook Advertising,16.82,Advertising/Publicity
07-Oct-19,People & Governance,Facebk *5na7pnn7j2,Facebook Advertising,17.14,Advertising/Publicity
07-Oct-19,People & Governance,Facebk *5na7pnn7j2,Facebook Advertising,58.33,Advertising/Publicity
07-Oct-19,People & Governance,Facebk *5na7pnn7j2,Facebook Advertising,19.42,Exhibition expenses
21-Oct-19,People & Governance,Facebk *6nbjpne8j2,Facebook Advertising,352.60,Advertising/Publicity
21-Oct-19,People & Governance,Facebk *6nbjpne8j2,Facebook Advertising,48.31,Advertising/Publicity
21-Oct-19,People & Governance,Facebk *6nbjpne8j2,Facebook Advertising,70.66,Advertising/Publicity
21-Oct-19,People & Governance,Facebk *6nbjpne8j2,Facebook Advertising,11.77,Advertising/Publicity
14-Oct-19,People & Governance,Facebk *9a5vrnn7j2,Facebook Advertising,240.96,Advertising/Publicity
14-Oct-19,People & Governance,Facebk *9a5vrnn7j2,Facebook Advertising,96.01,Advertising/Publicity
14-Oct-19,People & Governance,Facebk *9a5vrnn7j2,Facebook Advertising,3.71,Advertising/Publicity
14-Oct-19,People & Governance,Facebk *9a5vrnn7j2,Facebook Advertising,142.66,Exhibition expenses
07-Aug-19,People & Governance,Facebk *9k5zun68j2,Facebook Advertising,35.39,Advertising/Publicity
09-Sep-19,People & Governance,Facebk *br44qn28j2,Facebook Advertising,38.82,Advertising/Publicity
08-Oct-19,People & Governance,Facebk *fue82ps8j2,Facebook Advertising,5.36,Advertising/Publicity
08-Oct-19,People & Governance,Facebk *fue82ps8j2,Facebook Advertising,0.06,Advertising/Publicity
08-Oct-19,People & Governance,Facebk *fue82ps8j2,Facebook Advertising,1.17,Advertising/Publicity
08-Oct-19,People & Governance,Facebk *fue82ps8j2,Facebook Advertising,0.64,Exhibition expenses
19-Jul-19,People & Governance,Facebk *k54vmmj8j2,Facebook Advertising,245.55,Advertising/Publicity
22-Oct-19,People & Governance,Facebk *lkkcmpa8j2,Facebook Advertising,187.59,Advertising/Publicity
22-Oct-19,People & Governance,Facebk *lkkcmpa8j2,Facebook Advertising,184.13,Advertising/Publicity
22-Oct-19,People & Governance,Facebk *lkkcmpa8j2,Facebook Advertising,2.75,Advertising/Publicity
22-Oct-19,People & Governance,Facebk *lkkcmpa8j2,Facebook Advertising,108.86,Advertising/Publicity
30-Jul-19,People & Governance,Facebk *macwdme8j2,Facebook Advertising,275.3,Advertising/Publicity
16-Sep-19,People & Governance,Facebk *nq7dbnn7j2,Facebook Advertising,390.18,Advertising/Publicity
05-Sep-19,People & Governance,Facebk *nuarfns8j2,Facebook Advertising,66.34,Advertising/Publicity
30-Sep-19,People & Governance,Facebk *qxcujnn7j2,Facebook Advertising,243.28,Advertising/Publicity
04-Oct-19,People & Governance,Facebk *vc82mnn7j2,Facebook Advertising,320.06,Advertising/Publicity
04-Oct-19,People & Governance,Facebk *vc82mnn7j2,Facebook Advertising,71.99,Advertising/Publicity
04-Oct-19,People & Governance,Facebk *vc82mnn7j2,Facebook Advertising,4.29,Advertising/Publicity
04-Oct-19,People & Governance,Facebk *vc82mnn7j2,Facebook Advertising,45.37,Advertising/Publicity
04-Oct-19,People & Governance,Facebk *vc82mnn7j2,Facebook Advertising,8.97,Advertising/Publicity
04-Oct-19,People & Governance,Facebk *vc82mnn7j2,Facebook Advertising,7.86,Advertising/Publicity
04-Oct-19,People & Governance,Facebk *vc82mnn7j2,Facebook Advertising,24.78,Exhibition expenses
22-Aug-19,People & Governance,Facebk *w6uu5ns7j2,Facebook Advertising,112.76,Advertising/Publicity
07-Oct-19,People & Governance,Google,Google Ad campaign for Made In Suffolk,147.71,Advertising/Publicity
22-Oct-19,People & Governance,Google,Google Ads campaign ongoing,200.00,Advertising/Publicity
21-Oct-19,People & Governance,Greater Anglia Trains,Train fare for IIA training course,66.00,Use Of Public Transport
17-Oct-19,People & Governance,Helloprint,Pull Up Banners for MiS Trail - to be charged on,98.65,Printing Costs
21-Oct-19,People & Governance,Isaca,ISACA annual subscription,180.44,Employee Expenses
13-Sep-19,People & Governance,Mailchimp,Facebook Advertising,-57.29,Advertising/Publicity
14-Oct-19,People & Governance,Mailchimp,MailChimp Email Marketing,554.28,Subscriptions - Service Related
07-Oct-19,People & Governance,Marks&spencer Plc,Radiographers afternoon tea cake/sandwiches,57.05,Miscellaneous Functions & Events
16-Oct-19,People & Governance,Marks&spencer Plc,afternoon tea,15.62,Miscellaneous Functions & Events
18-Oct-19,People & Governance,Nochex.*utilitysearch,utility search due diligence before purchase of property,100.17,Capital Expenditure
03-Oct-19,People & Governance,Parcel2go_uk,courier bundle to counsel,5.10,Postage Costs
03-Oct-19,People & Governance,Parcel2go_uk,courier bundle to counsel,5.10,Postage Costs
09-Sep-19,People & Governance,Premier Inn44015840,French visit to Ipswich/Exhibit/Remembrance/Arras Visit,119.17,Mayoral Related Expenditure
24-Sep-19,People & Governance,Ryman,2020 Diaries for Democratic Services and Mayor's Office,18.31,Stationery
22-Oct-19,People & Governance,Sainsburys S/mkt,100 birthday present,8.33,Miscellaneous Functions & Events
23-Oct-19,People & Governance,Sainsburys S/mkts,Press call for Calendar Girls,9.37,Advertising/Publicity
18-Oct-19,People & Governance,Sainsburys S/mkts,charity draw prizes and general use in parlour,10.00,Miscellaneous Functions & Events
17-Oct-19,People & Governance,"Sprout Social, Inc",Social Media Management,0.21,Subscriptions - Service Related
17-Oct-19,People & Governance,"Sprout Social, Inc",Social Media Management,671.14,Subscriptions - Service Related
22-Oct-19,People & Governance,Stk*bigstockphoto.Com,Photo Credits,39.00,Equipment / Furniture / Materials
25-Oct-19,People & Governance,Tesco Store 2748,"Ink Cartridges for MiS Exhibition, to be recharged",43.33,Computer Consumables and other Minor IT costs
23-Oct-19,People & Governance,Trainline.Com,Train fare to IIA IT training course,76.89,Use Of Public Transport
02-Oct-19,People & Governance,Waitrose Ltd,coffee /biscuits Ipswich Prep School visit,6.52,Miscellaneous Functions & Events
07-Oct-19,People & Governance,Waitrose Ltd,Radiographers afternoon tea cake/milk,3.35,Miscellaneous Functions & Events
11-Oct-19,People & Governance,Web Windows Marketing,Guardian Digital Advertising for Made in Suffolk,770.00,Advertising/Publicity
18-Oct-19,People & Governance,Wh Smith,books of draw tickets,4.98,Miscellaneous Functions & Events
08-Oct-19,People & Governance,Wilko Retail Limited,cleaning products for parlour.,18.33,Miscellaneous Functions & Events
20-Sep-19,People & Governance,Www.Banneruk.Com,Canon inks _S/Housing ,109.91,Computer Consumables and other Minor IT costs
01-Oct-19,People & Governance,Www.Banneruk.Com,Toner Cartridge for Car Parking,90.43,Computer Consumables and other Minor IT costs
08-Oct-19,People & Governance,Www.Banneruk.Com,S/Hsng Canon540/541 inks,88.90,Computer Consumables and other Minor IT costs
10-Oct-19,People & Governance,Www.Banneruk.Com,Epson Wide format inks,660.42,Computer Consumables and other Minor IT costs
11-Oct-19,People & Governance,Www.Banneruk.Com,wide format maintenance cartridge,68.56,Computer Consumables and other Minor IT costs
18-Oct-19,People & Governance,Www.Banneruk.Com,S/Hsng Canon inks,57.05,Computer Consumables and other Minor IT costs
18-Oct-19,People & Governance,Www.Banneruk.Com,S/Hsng Canon inks,125.24,Computer Consumables and other Minor IT costs
18-Oct-19,People & Governance,Www.Banneruk.Com,CLI-571CMYKx2 S/Hsng,138.40,Computer Consumables and other Minor IT costs
24-Oct-19,People & Governance,Www.Banneruk.Com,HP/Canon inks ,42.52,Computer Consumables and other Minor IT costs
15-Oct-19,People & Governance,Www.Labelplanet.Co.Uk,Round Labels for the MiS Trail Event,27.50,Miscellaneous Stock  - Purchases
24-Oct-19,People & Governance,Www.Labelplanet.Co.Uk,Bulk 14 Labels to a Sheet for the print room use,75.00,Miscellaneous Stock  - Purchases
16-Oct-19,People & Governance,Www.Ovendenpapers.,Large Format Paper Rolls,254.04,Miscellaneous Stock  - Purchases
01-Oct-19,People & Governance,Www.Paper.Co.Uk,Paper supplies for the print room,68.81,Miscellaneous Stock  - Purchases
15-Oct-19,People & Governance,Www.Paper.Co.Uk,Paper stock required for the print room.,232.54,Miscellaneous Stock  - Purchases
18-Oct-19,People & Governance,Www.Paper.Co.Uk,Paper Supplied for the print room.,76.06,Miscellaneous Stock  - Purchases
24-Oct-19,People & Governance,Www.Presco-Uk.Com,"Cardboard Business Card Holders, and Plastic Free Covers",115.11,Miscellaneous Stock  - Purchases
04-Oct-19,People & Governance,Www.Stannp.Com,Calendar Girls Direct Mail,"1,449.00",Advertising/Publicity
09-Oct-19,People & Governance,Www.Stannp.Com,Annie Direct Mail Campaign,"1,489.84",Advertising/Publicity
31-Oct-19,People & Governance,Www.Thelawsociety.Org,webinar on commercial property update,45.00,Training Expenses
